fUSD/lending_fUSD_20240224
["ID","MTS","AMOUNT","RATE_DAILY","PERIOD"]
[315055892,1708792244587,-98830.11,0.00024697,2]
[315055894,1708792244597,-76261.7600715,0.000247,2]
[315055896,1708792244606,-22724.341098,0.000247,2]
[315055899,1708792244615,-1000.0,0.000247,2]
[315055901,1708792244624,-20000.0,0.00024737,2]
[315055903,1708792244634,-885.7144,0.00024763,2]
[315055905,1708792244644,-150.0,0.00024766,2]
[315055907,1708792244655,-150.0,0.00024772,2]
[315055909,1708792244665,-1779.05205756,0.00024788,2]
[315055911,1708792244674,-375.65879538,0.00024788,2]
[315055913,1708792244684,-5000.0,0.00024788,2]
[315055915,1708792244694,-355.62111728,0.00024789,2]
[315055917,1708792244704,-170.0838556,0.00024789,2]
[315055919,1708792244713,-250.4530074,0.00024789,2]
[315055921,1708792244724,-605.7451562,0.00024789,2]
[315055923,1708792244734,-164.42172482,0.00024789,2]
[315055925,1708792244743,-566.56214076,0.00024789,2]
[315055927,1708792244753,-10643.98101464,0.00024789,2]
[315055929,1708792244767,-245.2,0.00024807,2]
[315055932,1708792244777,-150.0,0.00024808,2]
[315055934,1708792244786,-29705.69803058,0.0002487,2]
[315055936,1708792244796,-234.06410996,0.00024877,2]
[315055938,1708792244806,-935.12387,0.00024881,2]
[315055940,1708792244815,-36634.7293932,0.00024881,2]
[315055942,1708792244825,-4115.7189003,0.00024881,2]
[315055944,1708792244839,-3881.6201984,0.00024881,2]
[315055946,1708792244848,-85769.5132989,0.00024881,2]
[315055948,1708792244858,-225.69051144,0.00024886,2]
[315055950,1708792244869,-228555.99308111,0.00024887,2]
[315055952,1708792244880,-784.74681897,0.00024888,2]
[315055954,1708792244890,-300.0,0.00024888,2]
[315055956,1708792244900,-300.0,0.00024888,2]
[315055958,1708792244910,-300.0,0.00024888,2]
[315055960,1708792244920,-300.0,0.00024888,2]
[315055962,1708792244929,-354.23257489,0.00024888,2]
[315055964,1708792244940,-151.0,0.00024888,3]
[315055966,1708792244950,-151.0,0.00024888,3]
[315055969,1708792244960,-151.0,0.00024888,2]
[315055970,1708792244970,-151.0,0.00024888,2]
[315055973,1708792244980,-1729171.69911591,0.00024888,4]
[315055975,1708792244990,-1786.02,0.00024888,2]
[315055977,1708792245000,-957876.51692069,0.00024889,2]
[315055979,1708792245018,-724.41329783,0.00024889,2]
[315055982,1708792245030,-16920.17371945,0.00024889,2]
[315055984,1708792245048,-1486.90330936,0.00024889,2]
[315055987,1708792245061,-519.72736454,0.00024889,2]
[315055993,1708792245138,-29082.84143635,0.00024889,2]
[315055995,1708792245151,-11000.0,0.00024889,2]
[315056074,1708792246221,-231.61579054,0.00024625,2]
[315056075,1708792246230,-659.30257134,0.00024663,2]
[315056076,1708792246239,-1311.4915207,0.00024889,2]
[315056079,1708792246279,-505.40595551,0.00024889,2]
[315056080,1708792246291,-1827.64971345,0.00024889,2]
[315056081,1708792246341,-3289.09678362,0.00024889,2]
[315056082,1708792246399,-704.68531707,0.00024889,2]
[315056083,1708792246457,-5166.49193599,0.00024889,2]
[315056084,1708792246469,-25139.67319691,0.00024889,2]
[315056085,1708792246483,-10670.92932416,0.00024889,2]
[315056086,1708792246492,-123.36822358,0.00024889,3]
[315056087,1708792246579,-27.63177642,0.00024889,3]
[315056088,1708792246588,-151.0,0.00024889,3]
[315056089,1708792246598,-151.0,0.00024889,3]
[315056090,1708792246607,-151.0,0.00024889,2]
[315056091,1708792246616,-151.0,0.00024889,2]
[315056092,1708792246625,-172.49956318,0.00024898,2]
[315056093,1708792246634,-24.17799468,0.00024898,2]
[315056095,1708792509139,154.34199993,0.0002387,30]
[315056097,1708792683505,416.62,0.00021553,2]
[315056099,1708792762038,1845.5521472,0.000255,21]
[315056105,1708793100500,-541.66266768,0.00022918,2]
[315056106,1708793100524,-515.95579478,0.00022919,2]
[315056107,1708793100547,-231.61579054,0.00022922,2]
[315056108,1708793100574,-150.0,0.00022929,2]
[315056109,1708793100598,-150.0,0.00023079,2]
[315056110,1708793100622,-150.0,0.0002315,2]
[315056111,1708793100646,-150.0,0.00023384,2]
[315056112,1708793100670,-110.765747,0.00023399,2]
[315056113,1708793101442,-2000.0,0.00023399,2]
[315056114,1708793102048,-594.224253,0.00023399,2]
[315056115,1708793102070,-171.92759103,0.00023425,2]
[315056116,1708793102091,-157.41,0.00023426,2]
[315056117,1708793102112,-239.01,0.00023431,2]
[315056118,1708793102134,-837.42815597,0.00023431,2]
[315056119,1708793102467,-1507.77184403,0.00023431,2]
[315056120,1708793102486,-492.22815597,0.00023451,2]
[315056121,1708793103020,-125.77184403,0.00023451,2]
[315056122,1708793103044,-152.7,0.00023482,2]
[315056123,1708793103065,-1000.0,0.00023525,2]
[315056124,1708793103086,-165.8,0.00023674,2]
[315056125,1708793103107,-555.72815597,0.00023816,2]
[315056126,1708793104205,-2000.0,0.00023816,2]
[315056127,1708793105629,-411.49907368,0.00023815,2]
[315056128,1708793105652,-226.06184403,0.00023816,2]
[315056129,1708793105674,-1362.43908229,0.00023816,2]
[315056130,1708793105995,-2000.0,0.00023816,2]
[315056131,1708793106383,-2000.0,0.00023816,2]
[315056132,1708793106722,-2000.0,0.00023816,2]
[315056133,1708793107144,-2000.0,0.00023816,2]
[315056134,1708793107513,-2000.0,0.00023816,2]
[315056135,1708793107843,-2000.0,0.00023816,2]
[315056136,1708793108217,-2000.0,0.00023816,2]
[315056137,1708793108536,-2000.0,0.00023816,2]
[315056138,1708793108914,-2000.0,0.00023816,2]
[315056139,1708793109291,-1520.43091771,0.00023816,2]
[315056140,1708793109310,-479.56908229,0.00023816,2]
[315056141,1708793113195,-20.42091771,0.00023816,2]
[315056142,1708793113217,-416.62,0.00023816,2]
[315056143,1708793113242,-175.6,0.00023832,2]
[315056144,1708793113263,-1387.35908229,0.00023832,2]
[315056145,1708793125938,-409.94091771,0.00023832,2]
[315056146,1708793136353,200.0,0.00023741,2]
[315056147,1708793142895,374.95,0.00021546,2]
[315056148,1708793143166,374.95,0.0002381,2]
[315056149,1708793158991,640.15908229,0.00023464,2]
[315056150,1708793159012,2000.0,0.00023464,2]
[315056151,1708793159033,2000.0,0.00023464,2]
[315056152,1708793159053,2000.0,0.00023464,2]
[315056153,1708793177255,-515.95579478,0.00023463,2]
[315056154,1708793177276,-274.33271578,0.00023463,2]
[315056155,1708793177298,-1209.71148944,0.00023464,2]
[315056156,1708793177851,-2000.0,0.00023464,2]
[315056157,1708793185684,-2000.0,0.00023464,2]
[315056158,1708793186176,-2000.0,0.00023464,2]
[315056159,1708793186741,-2000.0,0.00023464,2]
[315056160,1708793187294,-2000.0,0.00023464,2]
[315056161,1708793187833,-2000.0,0.00023464,2]
[315056162,1708793204639,-2000.0,0.00023464,2]
[315056163,1708793205291,-2000.0,0.00023464,2]
[315056164,1708793205835,-50.12942827,0.00023464,2]
[315056165,1708793205857,-150.0,0.00023723,2]
[315056166,1708793216281,1799.87057173,0.00023738,2]
[315056167,1708793216302,2000.0,0.00023738,2]
[315056172,1708793410884,750.0,0.000219,2]
[315056185,1708793431571,-228.61059649,0.00023497,2]
[315056186,1708793431581,-1840.6,0.00023498,2]
[315056187,1708793431591,-4263.514986,0.00023498,2]
[315056188,1708793431600,-259.39,0.00023553,2]
[315056189,1708793431610,-515.0,0.00023553,2]
[315056190,1708793431619,-154.47,0.00023565,2]
[315056191,1708793431628,-1787.56,0.00023617,2]
[315056192,1708793431638,-1840.6,0.00023617,2]
[315056193,1708793431647,-1786.18,0.00023617,2]
[315056194,1708793431657,-200.0,0.00023692,2]
[315056195,1708793431666,-1823.73,0.00023737,2]
[315056196,1708793431676,-1801.82,0.00023737,2]
[315056197,1708793431685,-206.0,0.00023857,2]
[315056198,1708793431695,-171.92759102,0.0002387,2]
[315056199,1708793431704,-154.67,0.00023873,2]
[315056200,1708793431714,-496.63,0.00023873,2]
[315056201,1708793431723,-150.0,0.00024022,2]
[315056202,1708793431733,-1825.5,0.00024066,2]
[315056203,1708793431743,-165.74,0.00024164,2]
[315056204,1708793431754,-1299.61742431,0.00024233,2]
[315056205,1708793431764,-150.0,0.00024305,2]
[315056206,1708793431773,-171.92759102,0.00024315,2]
[315056207,1708793431782,-300.0,0.00024383,2]
[315056208,1708793431793,-1206.3,0.00024384,2]
[315056209,1708793431802,-752.07,0.00024384,2]
[315056210,1708793431812,-162.57894972,0.00024413,2]
[315056212,1708793431821,-155.0,0.00024524,2]
[315056213,1708793431830,-500.0,0.00024526,2]
[315056215,1708793431839,-17951.5462,0.00024526,2]
[315056217,1708793431848,-5910.515,0.00024526,2]
[315056218,1708793431858,-1299.61742431,0.00024582,2]
[315056219,1708793431868,-199.21278174,0.00024624,2]
[315056220,1708793431878,-240.43396559,0.00024625,2]
[315056221,1708793431887,-175.6,0.00024626,2]
[315056222,1708793431897,-152.7,0.00024656,2]
[315056223,1708793431906,-250.0,0.00024658,2]
[315056224,1708793431917,-353.63467496,0.00024681,2]
[315056225,1708793431926,-36389.90774448,0.00024687,2]
[315056226,1708793431936,-19966.0628137,0.00024692,2]
[315056227,1708793431945,-200.0,0.00024693,2]
[315056228,1708793431954,-200.0,0.00024699,2]
[315056229,1708793431963,-800.0,0.00024699,2]
[315056230,1708793431972,-200.0,0.00024699,2]
[315056231,1708793431982,-500.0,0.00024699,2]
[315056232,1708793431992,-200.0,0.00024699,2]
[315056233,1708793432002,-171.92759102,0.00024761,2]
[315056234,1708793432013,-13114.23920204,0.00024772,2]
[315056235,1708793432023,-208.5464,0.00024788,2]
[315056236,1708793432032,-270.9234,0.00024796,2]
[315056237,1708793432042,-576.88974994,0.00024813,2]
[315056238,1708793432053,-635.917789,0.00024815,2]
[315056239,1708793432064,-159.069,0.00024816,2]
[315056240,1708793432073,-167.432,0.00024816,2]
[315056241,1708793432082,-1039.0,0.00024816,2]
[315056242,1708793432092,-286.519,0.00024816,2]
[315056243,1708793432102,-240.021,0.00024816,2]
[315056244,1708793432112,-1453.0,0.00024816,2]
[315056245,1708793432121,-168.307,0.00024816,2]
[315056246,1708793432131,-19898.0,0.00024816,2]
[315056247,1708793432140,-235.207,0.00024816,2]
[315056248,1708793432150,-7133.147,0.00024816,2]
[315056249,1708793432159,-2294.0,0.00024816,2]
[315056250,1708793432168,-8179.991,0.00024816,2]
[315056251,1708793432177,-151.0,0.00024816,2]
[315056252,1708793432187,-152.464,0.00024816,2]
[315056253,1708793432196,-183.0,0.00024816,2]
[315056254,1708793432205,-150.0,0.00024875,2]
[315056255,1708793432215,-23249.73112468,0.00024893,2]
[315056256,1708793432261,-8450.54370256,0.00024893,2]
[315056257,1708793432295,-1849.60099808,0.00024893,2]
[315056258,1708793433344,-383.84759107,0.00024893,2]
[315056259,1708793433356,-805.67050907,0.00024893,2]
[315056263,1708793437881,-1812.38,0.00023498,2]
[315056264,1708793437890,-1876.70749082,0.00024816,2]
[315056265,1708793437902,-2229.29250918,0.00024816,2]
[315056266,1708793437912,-278.43899172,0.00024893,2]
[315056267,1708793437924,-301.30278651,0.00024893,2]
[315056268,1708793437940,-16862.37270494,0.00024893,2]
[315056269,1708793437952,-59670.76377227,0.00024893,2]
[315056270,1708793437961,-516.9877773,0.00024893,2]
[315056271,1708793437970,-9345.2051943,0.00024893,2]
[315056272,1708793437980,-1770.8639165,0.00024893,2]
[315056273,1708793437989,-4462.0724563,0.00024896,2]
[315056274,1708793437999,-156.67482886,0.00024897,2]
[315056275,1708793438010,-1730.04445671,0.00024897,2]
[315056276,1708793438021,-1071.82084697,0.00024898,2]
[315056277,1708793438030,-579.74560818,0.00024898,2]
[315056278,1708793438040,-1990.812511,0.000249,2]
[315056279,1708793438049,-150.0,0.0002491,2]
[315056280,1708793438058,-406.6,0.00024932,2]
[315056281,1708793438067,-406.6,0.00024932,2]
[315056282,1708793438077,-245.2,0.00024934,2]
[315056283,1708793438086,-150.0,0.00024963,2]
[315056284,1708793438096,-204.48263457,0.00024969,2]
[315056285,1708793438106,-1500.0,0.0002499,2]
[315056286,1708793438115,-191.45310093,0.0002499,2]
[315056287,1708793438124,-215.11931397,0.00024995,2]
[315056288,1708793438133,-92006.23238149,0.00024999,2]
[315056289,1708793438143,-1008.68254687,0.00025,2]
[315056290,1708793438152,-939.78118658,0.00025,2]
[315056291,1708793438162,-1560.52606163,0.00025,2]
[315056292,1708793438171,-341892.33925306,0.00025,4]
[315056293,1708793438184,-5059.19815079,0.00025,4]
[315056294,1708793438196,-1688.38907045,0.00025,4]
[315056425,1708793439924,-164.419,0.00024816,2]
[315056427,1708793439933,-184.95547172,0.00025,4]
[315056429,1708793439945,-974.76535026,0.00025,4]
[315056431,1708793439956,-1535.35904543,0.00025,4]
[315056504,1708793440638,-6408.76013762,0.00025,4]
[315056506,1708793440647,-1185.08864825,0.00025,2]
[315056508,1708793440656,-750.0,0.00025,3]
[315056510,1708793440665,-245.2,0.00025061,2]
[315056511,1708793440675,-423.89,0.00025068,2]
[315056513,1708793440684,-150.0,0.00025068,2]
[315056515,1708793440693,-423.89,0.00025068,2]
[315056517,1708793440703,-423.89,0.00025068,2]
[315056519,1708793440712,-150.0,0.00025068,2]
[315056521,1708793440721,-150.0,0.00025068,2]
[315056523,1708793440730,-331.61,0.00025068,2]
[315056525,1708793440739,-423.89,0.00025068,2]
[315056527,1708793440748,-150.0,0.00025068,2]
[315056529,1708793440757,-150.0,0.00025086,2]
[315056531,1708793440766,-37780.65715611,0.0002509,2]
[315056533,1708793440776,-27920.65900329,0.0002509,2]
[315056535,1708793440785,-154.58,0.00025126,2]
[315056537,1708793440795,-150.0,0.00025158,2]
[315056539,1708793440803,-1299.61742433,0.00025162,2]
[315056541,1708793440813,-166.7,0.00025167,2]
[315056543,1708793440822,-1094.88501797,0.00025188,2]
[315056545,1708793440831,-245.2,0.00025189,2]
[315056547,1708793440841,-515.0,0.00025197,2]
[315056549,1708793440850,-171.92759102,0.00025206,2]
[315056551,1708793440859,-150.0,0.00025232,2]
[315056553,1708793440868,-576.88974991,0.0002524,2]
[315056555,1708793440878,-150.0,0.00025285,2]
[315056557,1708793440887,-245.2,0.00025316,2]
[315056559,1708793440896,-150.0,0.00025316,2]
[315056561,1708793440906,-200.0,0.00025332,2]
[315056563,1708793440915,-200.0,0.00025332,2]
[315056565,1708793440924,-201.0,0.00025332,2]
[315056567,1708793440933,-150.0,0.00025348,2]
[315056569,1708793440942,-46460.0,0.000254,2]
[315056571,1708793440951,-150.0,0.00025404,2]
[315056573,1708793440960,-175.6,0.0002542,2]
[315056575,1708793440970,-245.2,0.00025443,2]
[315056577,1708793440979,-5211.0,0.000255,2]
[315056579,1708793440988,-150.0,0.00025508,2]
[315056581,1708793440997,-150.0,0.00025513,2]
[315056583,1708793441006,-245.2,0.0002557,2]
[315056584,1708793441016,-150.0,0.00025586,2]
[315056586,1708793441026,-605.39750342,0.00025597,2]
[315056588,1708793441035,-1027.87173702,0.00025599,2]
[315056590,1708793441045,-250.43919692,0.00025599,2]
[315056592,1708793441054,-213.25674992,0.00025599,2]
[315056594,1708793441063,-1186.03470504,0.00025599,2]
[315056596,1708793441072,-54141.21463782,0.000256,2]
[315056598,1708793441081,-166.7,0.00025642,2]
[315056600,1708793441090,-171.92759102,0.00025651,2]
[315056602,1708793441101,-150.0,0.0002566,2]
[315056604,1708793441111,-576.88974991,0.00025666,2]
[315056606,1708793441120,-5000.0,0.00025669,2]
[315056608,1708793441129,-825.7,0.00025692,2]
[315056610,1708793441138,-30001.04141636,0.00025697,2]
[315056617,1708793441187,-453.46026764,0.00025697,2]
[315056621,1708793441220,-24932.13332281,0.00025697,2]
[315056623,1708793441230,-25044.22654,0.00025697,2]
[315056741,1708793442422,-3389.58189725,0.00025697,2]
[315056748,1708793442479,-18043.83960374,0.00025697,2]
[315056750,1708793442489,-470.4989539,0.00025697,2]
[315056752,1708793442499,-8504.8611613,0.00025697,2]
[315056754,1708793442509,-1611.6234403,0.00025697,2]
[315056756,1708793442518,-245.2,0.00025697,2]
[315056758,1708793442528,-500.0,0.00025699,2]
[315056760,1708793442538,-253.12727783,0.00025699,2]
[315056762,1708793442547,-600195.50410333,0.00025715,4]
[315056764,1708793442559,-46859.90833354,0.00025715,4]
[315056768,1708793442582,-662609.33699202,0.00025715,4]
[315056770,1708793442592,-74609.46774285,0.00025715,2]
[315056772,1708793442603,-1312.54026413,0.00025715,2]
[315056774,1708793442615,-2794.5679147,0.00025715,2]
[315056776,1708793442627,-601.69981911,0.00025715,2]
[315056779,1708793442639,-1043.91005195,0.00025715,2]
[315056786,1708793442700,-119637.81420726,0.00025715,2]
[315056788,1708793442711,-151.0,0.00025715,2]
[315056790,1708793442721,-151.0,0.00025715,2]
[315056792,1708793442730,-150.0,0.00025728,2]
[315056794,1708793442739,-150.0,0.00025732,2]
[315056796,1708793442748,-151.0,0.00025751,3]
[315056798,1708793442759,-151.0,0.00025751,3]
[315056800,1708793442768,-157.41,0.00025769,2]
[315056802,1708793442778,-443.75,0.000258,2]
[315056805,1708793442787,-1500.0,0.00025809,2]
[315056807,1708793442796,-150.0,0.0002581,2]
[315056808,1708793442806,-245.2,0.00025825,2]
[315056811,1708793442816,-150.0,0.00025826,2]
[315056813,1708793442826,-152.7,0.0002583,2]
[315056816,1708793442835,-601.68,0.00025836,2]
[315056817,1708793442845,-406.6,0.00025836,2]
[315056820,1708793442854,-406.6,0.00025836,2]
[315056822,1708793442863,-150.0,0.00025885,2]
[315056823,1708793442872,-423.89,0.0002589,2]
[315056826,1708793442881,-423.89,0.0002589,2]
[315056828,1708793442891,-423.89,0.0002589,2]
[315056830,1708793442900,-423.89,0.0002589,2]
[315056832,1708793442909,-423.89,0.0002589,2]
[315056833,1708793442918,-423.89,0.0002589,2]
[315056835,1708793442927,-423.89,0.0002589,2]
[315056837,1708793442937,-423.89,0.0002589,2]
[315056840,1708793442946,-423.89,0.0002589,2]
[315056842,1708793442955,-423.89,0.0002589,2]
[315056844,1708793442965,-423.89,0.0002589,2]
[315056845,1708793442974,-423.89,0.0002589,2]
[315056849,1708793442983,-423.89,0.0002589,2]
[315056851,1708793442993,-423.89,0.0002589,2]
[315056854,1708793443002,-423.89,0.0002589,2]
[315056856,1708793443014,-423.89,0.0002589,2]
[315056858,1708793443023,-150.0,0.0002589,2]
[315056860,1708793443031,-814.15,0.0002589,2]
[315056861,1708793443041,-150.0,0.0002589,2]
[315056863,1708793443050,-150.0,0.0002589,2]
[315056865,1708793443060,-150.0,0.0002589,2]
[315056867,1708793443069,-150.0,0.0002589,2]
[315056869,1708793443078,-150.0,0.0002589,2]
[315056871,1708793443087,-150.0,0.0002589,2]
[315056873,1708793443099,-150.0,0.0002589,2]
[315056876,1708793443108,-150.0,0.0002589,2]
[315056878,1708793443117,-142003.07422834,0.000259,2]
[315056880,1708793443128,-5025.2173311,0.000259,2]
[315056882,1708793443138,-151.0,0.000259,7]
[315056884,1708793443147,-151.0,0.000259,2]
[315056886,1708793443156,-272.619386,0.000259,2]
[315056888,1708793443165,-150.0,0.00025903,2]
[315056890,1708793443175,-150.0,0.00025907,2]
[315056892,1708793443185,-150.0,0.00025913,2]
[315056894,1708793443194,-154.47,0.00025922,2]
[315056896,1708793443203,-150.0,0.00025925,2]
[315056898,1708793443213,-245.2,0.00025952,2]
[315056900,1708793443222,-150.0,0.00025957,2]
[315056902,1708793443231,-150.0,0.00025966,2]
[315056904,1708793443240,-150.0,0.00025973,2]
[315056906,1708793443249,-150.0,0.00025973,2]
[315056908,1708793443258,-150.0,0.00025973,2]
[315056910,1708793443267,-150.0,0.00025973,2]
[315056912,1708793443275,-423.89,0.00025973,2]
[315056914,1708793443285,-384.6,0.00025973,2]
[315056916,1708793443294,-150.0,0.00025973,2]
[315056918,1708793443303,-150.0,0.00025973,2]
[315056920,1708793443312,-150.0,0.00025973,2]
[315056922,1708793443321,-150.0,0.00025973,2]
[315056924,1708793443329,-150.0,0.00025978,2]
[315056926,1708793443338,-1500.0,0.00026,2]
[315056928,1708793443347,-500.0,0.00026,2]
[315056930,1708793443359,-66205.38059712,0.00026,2]
[315056932,1708793443368,-518.0,0.00026,2]
[315056934,1708793443378,-1500.0,0.00026,2]
[315056936,1708793443387,-605.39750338,0.00026018,2]
[315056938,1708793443396,-150.0,0.00026038,2]
[315056940,1708793443405,-320.64265555,0.00026059,2]
[315056942,1708793443414,-150.0,0.0002606,2]
[315056944,1708793443423,-150.0,0.00026068,2]
[315056946,1708793443433,-150.0,0.00026068,2]
[315056948,1708793443442,-5025.21733102,0.00026073,2]
[315056950,1708793443451,-374.95,0.00026074,2]
[315056952,1708793443460,-245.2,0.00026079,2]
[315056954,1708793443469,-150.0,0.00026079,2]
[315056956,1708793443478,-1500.0,0.00026088,2]
[315056958,1708793443488,-150.0,0.00026093,2]
[315056960,1708793443496,-576.88974991,0.00026093,3]
[315056962,1708793443505,-783.778,0.000261,3]
[315056964,1708793443514,-150.0,0.00026115,2]
[315056966,1708793443522,-166.7,0.00026117,2]
[315056968,1708793443531,-150.0,0.00026143,2]
[315056970,1708793443540,-150.0,0.00026161,2]
[315056972,1708793443550,-150.0,0.00026186,2]
[315056974,1708793443559,-150.0,0.00026187,2]
[315056976,1708793443568,-150.0,0.00026188,2]
[315056978,1708793443577,-1000.0,0.000262,2]
[315056979,1708793443587,-1000.0,0.000262,2]
[315056980,1708793443596,-1500.0,0.00026204,2]
[315056982,1708793443605,-245.2,0.00026206,2]
[315056984,1708793443614,-175.6,0.00026215,2]
[315056985,1708793443623,-1500.0,0.0002622,2]
[315056986,1708793443632,-150.0,0.00026222,2]
[315056987,1708793443642,-150.0,0.00026232,2]
[315056988,1708793443652,-5025.21733102,0.00026245,2]
[315056989,1708793443661,-1500.0,0.0002626,2]
[315056990,1708793443670,-154.67,0.00026261,2]
[315056991,1708793443680,-300.0,0.00026281,2]
[315056992,1708793443690,-150.0,0.00026289,2]
[315056993,1708793443699,-150.0,0.00026295,2]
[315056994,1708793443709,-1150.86518463,0.000263,2]
[315056995,1708793443719,-1000.0,0.000263,2]
[315056996,1708793443728,-1007.0,0.000263,2]
[315056997,1708793443738,-150.0,0.00026319,2]
[315056998,1708793443747,-150.0,0.00026322,2]
[315056999,1708793443757,-150.0,0.00026327,2]
[315057000,1708793443767,-245.2,0.00026333,2]
[315057001,1708793443776,-150.0,0.00026343,2]
[315057002,1708793443786,-155.32281119,0.00026379,2]
[315057003,1708793443805,-851.21032222,0.00026379,2]
[315057004,1708793443817,-150.0,0.00026394,2]
[315057005,1708793443828,-1000.0,0.000264,2]
[315057006,1708793443837,-1500.0,0.0002641,2]
[315057007,1708793443847,-155.46775172,0.00026414,2]
[315057008,1708793443857,-150.0,0.00026416,2]
[315057009,1708793443868,-5025.21733102,0.00026418,2]
[315057010,1708793443878,-300.0,0.00026427,2]
[315057011,1708793443888,-339.0,0.00026431,2]
[315057012,1708793443897,-605.39750338,0.00026439,2]
[315057014,1708793443907,-150.0,0.00026451,2]
[315057016,1708793443916,-245.2,0.00026461,2]
[315057018,1708793443926,-1576.92564298,0.00026464,2]
[315057020,1708793443935,-1000.0,0.00026466,2]
[315057022,1708793443945,-150.0,0.00026491,2]
[315057024,1708793443955,-500.0,0.000265,2]
[315057026,1708793443967,-1500.0,0.00026503,2]
[315057028,1708793443977,-150.0,0.0002651,2]
[315057030,1708793443986,-576.88974991,0.0002652,3]
[315057031,1708793443995,-17790.976292,0.0002652,2]
[315057032,1708793444005,-151.0,0.0002652,3]
[315057033,1708793444016,-151.0,0.0002652,3]
[315057034,1708793444027,-150.0,0.00026528,2]
[315057035,1708793444036,-300.0,0.00026549,2]
[315057036,1708793444046,-150.0,0.0002655,2]
[315057037,1708793444056,-150.0,0.00026582,2]
[315057038,1708793444065,-245.2,0.00026588,2]
[315057039,1708793444075,-150.0,0.00026588,2]
[315057040,1708793444084,-5025.21733102,0.00026591,2]
[315057041,1708793444096,-300.0,0.00026593,2]
[315057042,1708793444106,-10254.73065001,0.00026594,2]
[315057043,1708793444115,-825.7,0.00026601,2]
[315057044,1708793444125,-150.0,0.00026607,2]
[315057045,1708793444134,-1500.0,0.00026621,2]
[315057046,1708793444143,-150.0,0.00026646,2]
[315057047,1708793444153,-406.6,0.00026648,2]
[315057048,1708793444162,-461.93,0.00026648,2]
[315057049,1708793444171,-918.37,0.00026648,2]
[315057050,1708793444180,-918.37,0.00026648,2]
[315057051,1708793444190,-918.37,0.00026648,2]
[315057052,1708793444200,-918.37,0.00026648,2]
[315057053,1708793444210,-150.0,0.00026652,2]
[315057054,1708793444219,-150.0,0.00026698,2]
[315057055,1708793444229,-1000.0,0.00026698,2]
[315057056,1708793444238,-1027.87173702,0.000267,2]
[315057057,1708793444252,-250.4391969,0.000267,2]
[315057058,1708793444261,-213.25674992,0.000267,2]
[315057059,1708793444271,-1186.03470503,0.000267,2]
[315057060,1708793444280,-1000.0,0.000267,2]
[315057061,1708793444292,-55555.0,0.000267,2]
[315057062,1708793444301,-78785.3044397,0.00026707,2]
[315057063,1708793444311,-13510.38364591,0.00026707,2]
[315057064,1708793444320,-151.0,0.00026707,7]
[315057065,1708793444330,-151.0,0.00026707,2]
[315057066,1708793444340,-150.0,0.00026707,2]
[315057067,1708793444349,-200.0,0.00026708,2]
[315057068,1708793444359,-19468.91820374,0.00026709,2]
[315057069,1708793444910,-2481.18875479,0.00026709,2]
[315057081,1708793445939,-82781.22055773,0.00026709,2]
[315057083,1708793445948,-151.0,0.00026725,3]
[315057085,1708793445958,-150.0,0.00026726,2]
[315057087,1708793445968,-150.0,0.00026726,2]
[315057089,1708793445977,-409.11079435,0.00026728,2]
[315057091,1708793445988,-150.0,0.00026728,2]
[315057093,1708793445997,-150.0,0.0002673,2]
[315057095,1708793446009,-150.0,0.00026744,2]
[315057098,1708793446019,-150.0,0.00026744,2]
[315057100,1708793446028,-150.0,0.00026744,2]